bitfinex/quotes_SOLUSD_20240624
["timestamp","ask_amount","ask_price","bid_price","bid_amount"]
[1719228071889,7.8867,126.8,126.77,15.3983]
[1719228072198,7.887,126.79,126.77,15.3983]
[1719228072896,7.8867,126.8,126.77,15.3983]
[1719228073103,7.886,126.81,126.77,15.3983]
[1719228073395,1.98148251,126.86,126.77,15.3983]
[1719228073602,1.98148251,126.88,126.77,15.3983]
[1719228073989,7.8858,126.81,126.77,15.3983]
[1719228074896,1.98148251,126.88,126.75,6.3744]
[1719228075101,7.8889,126.76,126.75,6.3744]
[1719228075688,7.8895,126.75,126.73,15.5336]
[1719228075892,55.67678251,126.82,126.69,399.4336]
[1719228076193,55.67678251,126.82,126.69,15.5336]
[1719228076194,7.8921,126.71,126.69,15.5336]
[1719228076379,7.8915,126.72,126.69,15.5336]
[1719228076582,1.98148251,126.79,126.69,15.5336]
[1719228076778,47.39,126.78,126.68,6.2161]
[1719228076982,46.98148251,126.77,126.68,6.2161]
[1719228077184,7.8932,126.69,126.68,6.2161]
[1719228077402,1.98148251,126.76,126.68,6.2161]
[1719228077910,7.8946,126.67,126.65,15.684]
[1719228078200,7.8951,126.66,126.65,15.684]
[1719228078498,7.8951,126.66,126.64,6.5263]
[1719228078895,1.98148251,126.72,126.64,6.5263]
[1719228079095,46.98148251,126.72,126.64,6.5263]
[1719228079300,46.98148251,126.72,126.61,16.5419]
[1719228079495,0.78982703,126.62,126.61,16.5419]
[1719228080089,1.98148251,126.7,126.61,16.5419]
[1719228080806,1.98148251,126.69,126.52,100.0]
[1719228081010,102.39,126.7,126.53,100.0]
[1719228081011,1.98148251,126.68,126.53,100.0]
[1719228081314,1.98148251,126.68,126.56,29.6563]
[1719228081505,1.98148251,126.68,126.56,21.7551]
[1719228082396,7.8987,126.61,126.56,21.7551]
[1719228082787,7.8983,126.61,126.56,21.7551]
[1719228082984,7.8989,126.6,126.56,21.7551]
[1719228083185,19.7423,126.64,126.56,21.7551]
[1719228083186,7.8984,126.61,126.56,21.7551]
[1719228083493,1.98148251,126.66,126.56,21.7551]
[1719228083687,7.8989,126.6,126.56,21.7551]
[1719228084286,1.98148251,126.63,126.56,21.7551]
[1719228084287,21.72528251,126.63,126.56,21.7551]
[1719228084495,19.7438,126.63,126.56,21.7551]
[1719228084684,7.8984,126.61,126.56,21.7551]
[1719228084890,1.98148251,126.67,126.56,21.7551]
[1719228085408,7.8979,126.62,126.56,21.7551]
[1719228085784,1.98148251,126.67,126.56,21.7551]
[1719228085991,7.9,126.59,126.56,21.7551]
[1719228086216,1.98148251,126.61,126.56,21.7551]
[1719228086512,10.0,126.73,126.57,100.0]
[1719228086513,1.98148251,126.67,126.57,100.0]
[1719228086821,1.98148251,126.7,126.57,100.0]
[1719228087005,1.98148251,126.7,126.57,207.9007]
[1719228087211,7.8951,126.66,126.59,100.0]
[1719228087506,1.98148251,126.7,126.57,100.0]
[1719228087683,1.98148251,126.7,126.56,29.6564]
[1719228087684,1.98148251,126.7,126.56,21.7551]
[1719228087888,1.98148251,126.7,126.59,100.0]
[1719228088115,7.8929,126.7,126.6,100.0]
[1719228088306,6.48812639,126.73,126.6,100.0]
[1719228088491,1.98148251,126.73,126.61,106.0856]
[1719228088694,7.8934,126.69,126.61,106.0856]
[1719228088890,1.98148251,126.73,126.61,6.0856]
[1719228089118,7.8958,126.65,126.61,6.0856]
[1719228089408,7.8951,126.67,126.61,6.0856]
[1719228089612,7.8934,126.69,126.61,6.0856]
[1719228089996,7.8934,126.69,126.61,13.9838]
[1719228090193,7.8917,126.72,126.63,107.8966]
[1719228090412,7.8923,126.71,126.63,100.0]
[1719228090601,7.8905,126.74,126.65,100.0]
[1719228090811,1.98148251,126.78,126.68,16.1964]
[1719228090812,8.19716514,126.78,126.68,16.1964]
[1719228090992,7.8886,126.77,126.69,107.8932]
[1719228091198,7.8889,126.76,126.69,100.0]
[1719228091513,7.8896,126.75,126.69,100.0]
[1719228091708,7.8887,126.77,126.69,100.0]
[1719228092008,8.19805409,126.82,126.68,507.9902]
[1719228092009,1.98148251,126.82,126.71,100.0]
[1719228092210,7.8869,126.8,126.71,491.7919]
[1719228093021,7.888,126.78,126.71,483.9]
[1719228093389,7.8886,126.77,126.71,383.9]
[1719228093594,1.98148251,126.85,126.71,383.9]
[1719228093790,7.8901,126.75,126.7,6.4939]
[1719228093996,7.891,126.73,126.7,6.4939]
[1719228094302,94.37148251,126.85,126.7,6.4939]
[1719228094814,94.37148251,126.85,126.67,100.0]
[1719228094815,47.39,126.77,126.59,100.0]
[1719228094996,47.39,126.77,126.61,200.0]
[1719228094997,1.98148251,126.76,126.61,200.0]
[1719228095195,7.8933,126.69,126.6,7.8986]
[1719228095396,7.894,126.68,126.59,207.8992]
[1719228095701,7.8953,126.66,126.58,6.3047]
[1719228095900,7.8938,126.69,126.62,100.0]
[1719228096208,31.632426,126.73,126.63,100.0]
[1719228096397,1.98148251,126.72,126.61,100.0]
[1719228096591,47.39,126.76,126.59,200.0]
[1719228096908,7.8948,126.67,126.59,200.0]
[1719228097103,126.00157951,126.75,126.59,200.0]
[1719228097306,7.8948,126.67,126.6,20.0]
[1719228097497,7.8939,126.68,126.59,207.8993]
[1719228098017,7.8939,126.68,126.6,7.8988]
[1719228098203,7.8939,126.68,126.59,200.0]
[1719228098204,78.61157951,126.75,126.61,100.0]
[1719228098516,7.8935,126.69,126.61,100.0]
[1719228098913,7.8935,126.69,126.61,107.8981]
[1719228099095,7.8939,126.68,126.59,207.8991]
[1719228099518,7.8945,126.67,126.59,207.8991]
[1719228099703,7.8945,126.67,126.59,200.0]
[1719228099904,7.8952,126.66,126.59,100.0]
[1719228100102,45.0,126.74,126.59,7.8993]
[1719228100307,1.98148251,126.73,126.58,14.2046]
[1719228101217,1.98148251,126.73,126.59,107.8993]
[1719228101417,1.98148251,126.73,126.63,100.0]
[1719228101717,31.630097,126.75,126.65,100.0]
[1719228101916,31.630097,126.75,126.66,6.3376]
[1719228102098,1.98148251,126.74,126.66,6.3376]
[1719228102916,31.629767,126.74,126.66,6.3376]
[1719228103113,1.98148251,126.75,126.66,6.3376]
[1719228103515,31.627207,126.75,126.66,6.3376]
[1719228103826,1.98148251,126.76,126.66,6.3376]
[1719228104118,31.621591,126.77,126.66,6.3376]
[1719228104304,7.8914,126.72,126.66,6.3376]
[1719228104506,7.8919,126.72,126.66,6.3376]
[1719228104803,1.98148251,126.76,126.66,6.3376]
[1719228105009,7.8941,126.68,126.66,6.3376]
[1719228105215,31.621591,126.75,126.65,16.5476]
[1719228105418,1.98148251,126.74,126.62,6.5176]
[1719228105722,7.8948,126.67,126.62,6.5176]
[1719228107001,7.8941,126.68,126.62,6.5176]
[1719228107736,1.98148251,126.74,126.62,6.5176]
[1719228108023,1.98148251,126.73,126.62,6.5176]
[1719228108230,7.8965,126.64,126.62,6.5176]
[1719228108399,7.8965,126.64,126.58,6.1683]
[1719228108899,7.8974,126.63,126.58,6.1683]
[1719228109098,2.76978251,126.71,126.58,6.1683]
[1719228109294,7.896,126.65,126.58,6.1683]
[1719228109595,7.8953,126.66,126.58,6.1683]
[1719228109796,1.98148251,126.71,126.59,100.0]
[1719228110134,1.98148251,126.74,126.61,207.8978]
[1719228110435,1.98148251,126.74,126.59,403.6487]
[1719228110436,7.8952,126.66,126.59,383.9]
[1719228110728,7.8942,126.68,126.61,100.0]
[1719228110933,1.98148251,126.74,126.59,383.9]
[1719228111102,1.98148251,126.73,126.59,583.9]
[1719228111303,1.98148251,126.73,126.61,100.0]
[1719228111503,7.8939,126.68,126.61,100.0]
[1719228111719,7.8948,126.67,126.59,483.9]
[1719228111919,7.896,126.65,126.59,383.9]
[1719228112233,1.98148251,126.73,126.58,397.9682]
[1719228112413,1.98148251,126.73,126.58,390.0683]
[1719228112615,7.8976,126.62,126.58,390.0683]
[1719228112928,7.8976,126.62,126.58,6.1683]
[1719228113826,7.8973,126.63,126.58,6.1683]
[1719228114023,1.98148251,126.7,126.58,6.1683]
[1719228114217,1.98148251,126.71,126.59,100.0]
[1719228114532,7.8975,126.63,126.58,6.1683]
[1719228114721,7.8983,126.61,126.58,6.1683]
[1719228114928,7.8977,126.62,126.58,6.1683]
[1719228115315,7.8986,126.61,126.58,6.1683]
[1719228116010,49.37148251,126.7,126.58,6.1683]
[1719228116331,1.98148251,126.7,126.58,6.1683]
[1719228117234,7.8966,126.64,126.58,6.1683]
[1719228118209,7.8961,126.65,126.58,6.1683]
[1719228118434,1.98148251,126.7,126.58,6.1683]
[1719228118435,7.8967,126.64,126.58,6.1683]
[1719228118641,7.8958,126.65,126.58,6.1683]
[1719228118832,7.8967,126.64,126.58,6.1683]
[1719228119016,16.47785609,126.7,126.58,6.1683]
[1719228119017,7.8962,126.65,126.58,6.1683]
[1719228119219,16.47785609,126.7,126.58,6.1683]
[1719228119522,16.47785609,126.7,126.59,100.0]
[1719228119523,10.18427899,126.7,126.59,100.0]
[1719228119706,7.8956,126.66,126.59,100.0]
[1719228119909,7.8956,126.66,126.58,6.1683]
[1719228120429,1.98148251,126.71,126.58,6.1683]
[1719228120430,1.98148251,126.71,126.61,100.0]
[1719228120630,7.8934,126.69,126.62,21.2795]
[1719228120829,1.98148251,126.72,126.62,21.2795]
[1719228120830,7.8949,126.67,126.62,21.2795]
[1719228121036,7.8954,126.66,126.62,21.2795]
[1719228121327,7.8947,126.67,126.62,21.2795]
[1719228121530,7.8948,126.67,126.62,21.2795]
[1719228121716,7.8952,126.66,126.62,21.2795]
[1719228121917,1.98148251,126.72,126.62,21.2795]
[1719228122117,7.8948,126.67,126.62,21.2795]
[1719228122326,8.20293202,126.73,126.64,100.0]
[1719228122533,15.3264,126.8,126.64,107.896]
[1719228122832,7.8924,126.71,126.64,100.0]
[1719228123024,7.8926,126.7,126.64,100.0]
[1719228123533,1.98148251,126.76,126.64,100.0]
[1719228123828,1.98148251,126.76,126.65,100.0]
[1719228124026,7.8915,126.72,126.65,100.0]
[1719228124615,7.8921,126.71,126.65,100.0]
[1719228124811,7.8927,126.7,126.63,483.9]
[1719228125015,7.8927,126.7,126.64,100.0]
[1719228125216,7.8927,126.7,126.63,383.9]
[1719228125619,7.8922,126.71,126.64,200.0]
[1719228126230,7.8922,126.71,126.63,391.7968]
[1719228126231,7.8929,126.7,126.63,383.9]
[1719228126855,7.8911,126.73,126.64,100.0]
[1719228127023,1.98148251,126.77,126.64,100.0]
[1719228127225,7.8917,126.72,126.64,491.7961]
[1719228127436,7.8917,126.72,126.64,483.9]
[1719228127639,7.8934,126.69,126.64,383.9]
[1719228127828,1.98148251,126.77,126.62,505.1795]
[1719228127829,7.8929,126.7,126.62,505.1795]
[1719228128133,7.8941,126.68,126.62,405.1795]
[1719228128634,7.8935,126.69,126.62,505.1795]
[1719228128815,1.98148251,126.77,126.62,613.0768]
[1719228129141,7.8915,126.72,126.64,207.896]
[1719228129644,1.98148251,126.77,126.64,583.9]
[1719228129847,8.20110156,126.79,126.68,100.0]
[1719228130151,15.3264,126.8,126.68,100.0]
[1719228130517,1.98148251,126.79,126.68,100.0]
[1719228130721,1.98148251,126.79,126.67,383.9]
[1719228132431,1.98148251,126.79,126.67,583.9]
[1719228133129,1.98148251,126.79,126.67,591.7944]
[1719228133526,1.98148251,126.79,126.67,583.9]
[1719228133725,7.8902,126.74,126.67,483.9]
[1719228134044,1.98148251,126.79,126.67,483.9]
[1719228134255,1.98148251,126.79,126.67,383.9]
[1719228134725,1.98148251,126.79,126.67,483.9]
[1719228134928,7.8903,126.74,126.67,483.9]
[1719228135239,7.8897,126.75,126.67,583.9]
[1719228135458,1.98148251,126.79,126.67,583.9]
[1719228135621,7.8898,126.75,126.67,591.7943]
[1719228135951,7.8898,126.75,126.67,583.9]
[1719228136819,1.98148251,126.79,126.67,583.9]
[1719228137019,7.8917,126.72,126.67,383.9]
[1719228137315,1.98148251,126.79,126.65,122.5744]
[1719228137316,1.98148251,126.79,126.66,200.0]
[1719228137522,7.8908,126.73,126.66,583.9]
[1719228137822,7.8915,126.72,126.66,483.9]
[1719228138528,7.891,126.73,126.66,483.9]
[1719228138935,7.8902,126.74,126.66,591.795]
[1719228139322,7.8902,126.74,126.66,583.9]
[1719228139523,7.8908,126.73,126.66,583.9]
[1719228139923,7.8908,126.73,126.66,483.9]
[1719228140119,1.98148251,126.79,126.66,383.9]
[1719228140327,94.37148251,126.79,126.65,22.5744]
[1719228140526,7.8929,126.7,126.65,22.5744]
[1719228141444,7.8921,126.71,126.65,22.5744]
[1719228141949,7.8926,126.7,126.65,22.5744]
[1719228142122,7.8933,126.69,126.65,22.5744]
[1719228143321,3.55948251,126.76,126.65,22.5744]
[1719228143535,7.8949,126.67,126.62,6.0708]
[1719228143824,62.8361,126.75,126.62,6.0708]
[1719228143825,1.98148251,126.74,126.62,6.0708]
[1719228144054,7.896,126.65,126.62,6.0708]
[1719228144221,1.98148251,126.73,126.61,15.3372]
[1719228144222,7.8965,126.64,126.61,15.3372]
[1719228144427,7.8966,126.64,126.59,6.0708]
[1719228144732,1.98148251,126.73,126.59,6.0708]
[1719228144955,7.8955,126.66,126.59,6.0708]
[1719228145254,7.8955,126.66,126.59,389.9708]
[1719228145835,7.8958,126.65,126.59,389.9708]
[1719228146134,7.8969,126.64,126.59,389.9708]
[1719228146330,7.8961,126.65,126.59,389.9708]
[1719228146550,7.8965,126.64,126.59,389.9708]
[1719228147046,7.896,126.65,126.59,389.9708]
[1719228149544,7.8955,126.66,126.59,389.9708]
[1719228149856,7.8974,126.63,126.59,389.9708]
[1719228150549,7.8966,126.64,126.59,389.9708]
[1719228150858,1.578,126.72,126.59,6.0708]
[1719228151151,7.8973,126.63,126.59,6.0708]
[1719228151337,7.8979,126.62,126.59,6.0708]
[1719228151935,1.98148251,126.69,126.59,6.0708]
[1719228151936,16.5511,126.68,126.59,6.0708]
[1719228152143,7.8988,126.6,126.57,15.3372]
[1719228152530,1.98148251,126.67,126.57,15.3372]
[1719228152531,7.8984,126.61,126.57,15.3372]
[1719228152745,1.578,126.64,126.54,383.9]
[1719228152948,7.8997,126.59,126.54,383.9]
[1719228153348,3.55948251,126.64,126.54,383.9]
[1719228153551,1.578,126.64,126.54,383.9]
[1719228154446,3.55948251,126.64,126.54,383.9]
[1719228154649,15.4553,126.63,126.49,6.5762]
[1719228154948,1.98148251,126.62,126.49,22.2538]
[1719228155135,46.98148251,126.62,126.49,122.2538]
[1719228155337,1.98148251,126.62,126.49,22.2538]
[1719228155550,46.98148251,126.62,126.49,22.2538]
[1719228155744,94.37148251,126.62,126.49,22.2538]
[1719228156154,94.37148251,126.62,126.49,6.5762]
[1719228157140,94.37148251,126.62,126.46,6.4226]
[1719228157345,1.578,126.61,126.46,6.4226]
[1719228157558,1.98148251,126.6,126.46,6.4226]
[1719228157738,7.9009,126.57,126.49,100.0]
[1719228158071,1.98148251,126.62,126.51,200.0]
[1719228158249,1.98148251,126.62,126.5,21.5986]
[1719228158555,7.8998,126.59,126.5,29.5032]
[1719228158746,15.4553,126.63,126.53,100.0]
[1719228158747,7.8984,126.61,126.53,100.0]
[1719228158954,9.98730593,126.64,126.53,100.0]
[1719228159149,7.8984,126.61,126.53,100.0]
[1719228159357,7.8984,126.61,126.53,200.0]
[1719228159558,7.8984,126.61,126.5,221.5986]
[1719228159559,7.8983,126.61,126.5,221.5986]
[1719228159739,7.8987,126.61,126.54,200.0]
[1719228159940,7.8979,126.62,126.54,100.0]
[1719228160141,7.8983,126.61,126.55,6.4116]
[1719228160359,1.98148251,126.66,126.55,6.4116]
[1719228160661,8.4850772,126.66,126.55,6.4116]
[1719228160843,1.98148251,126.65,126.55,6.4116]
[1719228161045,1.98148251,126.69,126.56,15.5618]
[1719228161253,31.644603,126.69,126.57,200.0]
[1719228161657,8.0241611,126.7,126.57,200.0]
[1719228161851,8.0241611,126.7,126.57,583.9]
[1719228162359,1.98148251,126.69,126.57,583.9]
[1719228162956,1.98148251,126.69,126.57,383.9]
[1719228163335,31.5,126.67,126.56,15.5618]
[1719228163541,1.98148251,126.66,126.56,15.5618]
[1719228163984,7.8979,126.62,126.56,15.5618]
[1719228164149,7.8975,126.63,126.56,15.5618]
[1719228164351,7.8977,126.62,126.56,15.5618]
[1719228164849,7.8987,126.61,126.56,15.5618]
[1719228165650,7.8977,126.62,126.56,15.5618]
[1719228166064,1.98148251,126.66,126.56,15.5618]
[1719228166462,7.8998,126.59,126.56,15.5618]
[1719228166769,7.9004,126.58,126.56,15.5618]
[1719228167684,1.98148251,126.65,126.56,15.5618]
[1719228167854,31.5,126.67,126.56,15.5618]
[1719228167855,7.8985,126.61,126.56,15.5618]
[1719228168362,7.8986,126.61,126.56,15.5618]
[1719228168563,1.98148251,126.66,126.56,15.5618]
[1719228169053,6.49058227,126.66,126.57,100.0]
[1719228169270,33.48148251,126.67,126.57,100.0]
[1719228169271,7.8961,126.65,126.57,100.0]
[1719228169646,7.8963,126.64,126.57,100.0]
[1719228170065,1.98148251,126.69,126.57,100.0]
[1719228170274,49.37148251,126.69,126.56,15.5618]
[1719228170579,1.98148251,126.68,126.56,15.5618]
[1719228170775,7.899,126.6,126.56,15.5618]
[1719228170957,7.8996,126.59,126.56,15.5618]
[1719228171274,7.8988,126.61,126.56,15.5618]
[1719228172451,1.98148251,126.68,126.56,15.5618]
[1719228173367,8.20156023,126.67,126.56,15.5618]
[1719228173580,1.98148251,126.66,126.56,15.5618]
[1719228174855,10.18304274,126.67,126.56,115.5618]
[1719228175184,7.898,126.62,126.56,115.5618]
[1719228175565,7.8973,126.63,126.56,115.5618]
[1719228175884,7.8977,126.62,126.56,115.5618]
[1719228176904,1.98148251,126.69,126.58,100.0]
[1719228177052,7.8976,126.62,126.56,499.4618]
[1719228177251,7.8976,126.62,126.56,115.5618]
[1719228177451,7.8971,126.63,126.56,215.5618]
[1719228177949,1.98148251,126.69,126.56,115.5618]
[1719228178150,7.8977,126.62,126.56,499.4618]
[1719228178557,7.8983,126.61,126.56,399.4618]
[1719228178750,1.98148251,126.69,126.56,399.4618]
[1719228178946,46.98148251,126.69,126.56,15.5618]
[1719228179150,78.49148251,126.69,126.56,15.5618]
[1719228179453,0.79013907,126.58,126.56,15.5618]
[1719228181057,7.8975,126.63,126.56,115.5618]
[1719228181378,1.98148251,126.69,126.58,100.0]
[1719228181672,31.639351,126.71,126.61,15.4885]
[1719228181987,7.8928,126.7,126.62,200.0]
[1719228182159,6.48013475,126.74,126.63,6.6448]
[1719228182354,39.82727514,126.76,126.63,6.6448]
[1719228182556,78.9,126.74,126.63,390.5448]
[1719228182767,1.98148251,126.73,126.63,390.5448]
[1719228184071,1.98148251,126.75,126.63,390.5448]
[1719228184878,46.98148251,126.75,126.63,390.5448]
[1719228185073,47.39,126.74,126.63,6.6448]
[1719228185279,46.98148251,126.73,126.63,6.6448]
[1719228186186,7.8945,126.67,126.63,6.6448]
[1719228186379,7.8942,126.68,126.63,6.6448]
[1719228186764,7.8946,126.67,126.63,6.6448]
[1719228187369,7.8941,126.68,126.63,6.6448]
[1719228187766,7.8937,126.69,126.63,106.6448]
[1719228187988,7.8928,126.7,126.63,106.6448]
[1719228188278,7.8927,126.7,126.63,106.6448]
[1719228188981,7.8933,126.69,126.63,106.6448]
[1719228189288,7.8939,126.68,126.63,106.6448]
[1719228189767,7.8948,126.67,126.63,6.6448]
[1719228189971,1.98148251,126.75,126.63,6.6448]
[1719228190363,7.8963,126.64,126.63,6.6448]
[1719228190682,7.896,126.65,126.63,6.6448]
[1719228190873,7.8963,126.64,126.63,6.6448]
[1719228191576,7.896,126.65,126.63,6.6448]
[1719228191780,7.8948,126.67,126.63,6.6448]
[1719228191986,7.8939,126.68,126.63,6.6448]
[1719228192284,7.8945,126.67,126.63,6.6448]
[1719228192479,1.98148251,126.75,126.63,6.6448]
[1719228192480,7.8952,126.66,126.63,6.6448]
[1719228192882,7.8958,126.65,126.63,6.6448]
[1719228193081,7.8952,126.66,126.63,6.6448]
[1719228193481,7.8948,126.67,126.63,6.6448]
[1719228193690,1.98148251,126.73,126.63,6.6448]
[1719228193881,1.98148251,126.73,126.63,106.6448]
[1719228194181,31.628339,126.76,126.63,106.6448]
[1719228194182,7.8923,126.71,126.63,206.6448]
[1719228194496,7.8923,126.71,126.64,16.6619]
[1719228194865,7.8948,126.67,126.64,16.6619]
[1719228195087,7.8934,126.69,126.64,400.5619]
[1719228195476,7.894,126.68,126.64,400.5619]
[1719228195684,7.8948,126.67,126.64,400.5619]
[1719228195883,7.8957,126.65,126.64,400.5619]
[1719228196282,7.8957,126.65,126.64,383.9]
[1719228196594,7.8963,126.64,126.63,6.6448]
[1719228197499,7.8974,126.63,126.61,15.6358]
[1719228197800,7.8976,126.62,126.61,15.6358]
[1719228198003,1.98148251,126.7,126.58,15.6358]
[1719228198180,7.8991,126.6,126.58,15.6358]
[1719228198380,7.8995,126.59,126.58,15.6358]
[1719228199292,1.98148251,126.65,126.58,15.6358]
[1719228199479,0.79001423,126.59,126.58,15.6358]
[1719228200990,7.8972,126.63,126.58,15.6358]
[1719228201201,7.8976,126.62,126.58,15.6358]
[1719228201513,31.51,126.68,126.58,15.6358]
[1719228201682,1.98148251,126.67,126.58,15.6358]
[1719228201952,7.898,126.62,126.58,15.6358]
[1719228202106,1.98148251,126.67,126.58,15.6358]
[1719228202411,46.98148251,126.67,126.57,6.3443]
[1719228202611,7.9,126.59,126.57,6.3443]
[1719228202772,7.9001,126.58,126.57,6.3443]
[1719228202976,7.8997,126.59,126.57,6.3443]
[1719228203894,7.9001,126.58,126.57,6.3443]
[1719228204701,94.37148251,126.67,126.54,22.4781]
[1719228204888,7.9009,126.57,126.54,22.4781]
[1719228205479,7.902,126.55,126.54,22.4781]
[1719228205798,7.9009,126.57,126.54,22.4781]
[1719228206001,7.9014,126.56,126.54,22.4781]
[1719228206298,7.9009,126.57,126.54,22.4781]
[1719228206697,7.9014,126.56,126.54,22.4781]
[1719228206895,7.901,126.57,126.54,22.4781]
[1719228207776,7.9015,126.56,126.54,22.4781]
[1719228208194,1.98148251,126.62,126.54,22.4781]
[1719228208195,7.9008,126.57,126.54,22.4781]
[1719228208398,1.98148251,126.62,126.54,22.4781]
[1719228208788,7.902,126.55,126.54,22.4781]
[1719228208992,7.9017,126.56,126.54,22.4781]
[1719228209431,7.902,126.55,126.54,22.4781]
[1719228209585,7.9017,126.56,126.54,22.4781]
[1719228210109,7.902,126.55,126.54,22.4781]
[1719228210315,1.98148251,126.62,126.54,22.4781]
[1719228210522,7.9009,126.57,126.54,22.4781]
[1719228210684,7.9012,126.57,126.54,22.4781]
[1719228210883,1.98148251,126.62,126.49,6.3672]
[1719228211201,7.9043,126.52,126.49,6.3672]
[1719228212181,7.9051,126.5,126.49,6.3672]
[1719228212491,7.9047,126.51,126.49,6.3672]
[1719228213209,1.98148251,126.58,126.49,6.3672]
[1719228213408,7.9044,126.52,126.49,6.3672]
[1719228213708,7.9034,126.53,126.49,6.3672]
[1719228214081,7.904,126.52,126.49,6.3672]
[1719228214707,7.9033,126.53,126.49,6.3672]
[1719228214906,7.904,126.52,126.49,6.3672]
[1719228215112,7.9034,126.53,126.49,6.3672]
[1719228215410,8.19918391,126.58,126.49,6.3672]
[1719228215605,1.98148251,126.58,126.49,6.3672]
[1719228215988,10.19115066,126.58,126.49,6.3672]
[1719228216402,8.20966815,126.58,126.49,6.3672]
[1719228216604,37.7296116,126.59,126.49,6.3672]
[1719228217295,1.98148251,126.58,126.49,6.3672]
[1719228219391,0.79057634,126.5,126.49,6.3672]
[1719228220898,27.06,126.55,126.49,6.3672]
[1719228221102,7.901,126.57,126.49,6.3672]
[1719228221302,27.06,126.6,126.49,490.2672]
[1719228221507,7.9009,126.57,126.49,490.2672]
[1719228221712,7.9024,126.55,126.49,490.2672]
[1719228222294,1.98148251,126.59,126.49,490.2672]
[1719228222494,7.9023,126.55,126.49,490.2672]
[1719228222902,7.9016,126.56,126.49,490.2672]
[1719228223125,7.902,126.55,126.49,490.2672]
[1719228223425,8.49869021,126.61,126.49,490.2672]
[1719228223613,6.5172077,126.61,126.5,122.4979]
[1719228223807,10.18541143,126.62,126.5,122.3279]
[1719228224120,7.9008,126.57,126.51,100.0]
[1719228224323,1.98148251,126.62,126.5,22.3279]
[1719228224625,7.9015,126.56,126.5,22.3279]
[1719228224820,1.98148251,126.62,126.5,22.3279]
[1719228225197,7.9027,126.54,126.5,22.3279]
[1719228225593,7.9022,126.55,126.5,22.3279]
[1719228226015,7.9028,126.54,126.5,22.3279]
[1719228226406,7.9021,126.55,126.5,22.3279]
[1719228226799,7.9016,126.56,126.5,22.3279]
[1719228227017,1.98148251,126.62,126.5,22.3279]
[1719228227491,7.901,126.57,126.5,22.3279]
[1719228227695,1.98148251,126.62,126.5,22.3279]
[1719228228819,7.9013,126.57,126.5,22.3279]
[1719228229288,7.9014,126.56,126.5,22.3279]
[1719228229719,7.9032,126.54,126.5,22.3279]
[1719228229927,1.98148251,126.62,126.5,22.3279]
[1719228230117,7.903,126.54,126.5,22.3279]
[1719228230291,7.9023,126.55,126.5,22.3279]
[1719228230933,7.9016,126.56,126.5,22.3279]
[1719228231103,7.902,126.55,126.5,22.3279]
[1719228231725,7.9016,126.56,126.5,22.3279]
[1719228232223,7.8998,126.59,126.52,100.0]
[1719228232441,1.98148251,126.62,126.53,6.2896]
[1719228232598,7.9016,126.56,126.53,6.2896]
[1719228232803,7.9009,126.57,126.53,6.2896]
[1719228233020,7.9009,126.57,126.53,4.7896]
[1719228233322,7.9014,126.56,126.53,4.7896]
[1719228233508,1.98148251,126.62,126.53,4.7896]
[1719228234310,8.47882038,126.63,126.53,4.7896]
[1719228234516,1.98148251,126.62,126.53,4.7896]
[1719228235109,7.9004,126.58,126.53,4.7896]
[1719228235320,7.9011,126.57,126.53,4.7896]
[1719228236131,7.9003,126.58,126.53,4.7896]
[1719228236347,7.9007,126.57,126.53,4.7896]